{"text_format":"1","workbook":"xlsx","n_sheets":1,"sheets":["2023"],"not_rendered":{"charts":0,"images":0,"macros":1,"external_links":0,"defined_names":1,"comments":1,"pivot_tables":0},"unopened":[],"bounds":{"document_bytes":16777216,"sheet_cells":100000,"rows_first":2000,"rows_last":500,"rows_between":2000,"halvings":0,"cell_chars":16384,"cell_head_chars":4096},"cells_cut":0,"cells_raw":0,"read":"whole","date_system":"1900"}

{"sheet":"2023","index":0,"n_rows":57,"n_cols":28,"rows_kept":57,"cut":false,"hidden":false,"merged":[[55,6,55,12],[56,6,56,12],[7,4,7,5],[3,6,3,7],[8,4,8,5],[3,10,3,11],[6,7,6,10],[5,7,5,10]]}
[]
[]
[null,null,null,null,null,null,2,null,null,null,null,null,null,null,null,null,{"$f":"M4-E7","v":2023}]
[null,null,null,"Anmeldung 25m","Sichtern, Liestal",null,"Bitte Jahrgang eintragen",null,null,null,"Shooting Masters",null,2023,null,null,{"$f":"RIGHT(E8,LEN(E8)-SEARCH(\"@\",E8,1))","v":{"$error":"#VALUE!"}}]
[]
[null,null,null,"Name / Vorname","JG","Kategorie",null,"Kader (Bitte auswählen)",null,null,null,null,"Lizenz"]
[null,null,null,null,null,{"$f":"IF(Q3>20,\"ELITE\",\"JUNIOR/IN\")","v":"ELITE"},null,"kein SSV Kader"]
[null,null,null,"E-Mail Adresse"]
[null,null,null,null,null,null,"25m Sport- und\nZentralfeuerpistole\nPräzision","25m Sport- und Zentralfeuerpistole Schnellfeuer","25m Sport- und\nZentralfeuerpistole\nPräzision","25m Sport- und Zentralfeuerpistole Schnellfeuer","25m Standard\nPistole\n",null,null,null,null,null,null,null,null,null,null,"10m(40)","10(60)","50(60)","50(60/40/40)","50(20/20/20)"]
[]
[null,null,null,"Shooting Masters",5,"15. / 16. April 2023","Samstag",null,"Sonntag",null,null,null,null,null,null,false,false,false,false,false,false,null,null,{"$f":"COUNTIF(R11:R13,TRUE)","v":0},{"$f":"COUNTIF(S11:S13,TRUE)","v":0},{"$f":"COUNTIF(T11:T13,TRUE)","v":0},null,"kein SSV Kader"]
[null,null,null,null,null,null,null,"10:45 Uhr",null,"10:45 Uhr","Samstag",{"$f":"IF(T11=FALSE,\"\",\"Sa.08:30-09:45\")","v":""},null,null,null,false,false,false,false,false,false,{"$f":"COUNTIF(P11:P14,TRUE)","v":0},{"$f":"COUNTIF(Q11:Q14,TRUE)","v":0},null,null,null,null,"Kader SpS (M, E1/E2, T4) "]
[null,null,null,null,null,"Liestal (25m)","WK 1",null,"WK 2",null,null,null,null,null,null,false,false,null,null,null,false,null,null,null,null,null,null,"NWF (T4-J, T3/T2/T1)"]
[null,null,null,null,null,null,null,null,null,null,"Sonntag",{"$f":"IF(T12=FALSE,\"\",\"Sa.10:30-11:45\")","v":""},null,null,null,false,false,null,null,null,false]
[]
[]
[null,null,null,"Shooting Masters",6,"04. / 05. Mai 2019",null,null,null,null,null,null,null,null,null,false,false,null,false,false,false,null,null,{"$f":"COUNTIF(R17:R19,TRUE)","v":0},{"$f":"COUNTIF(S17:S19,TRUE)","v":0},{"$f":"COUNTIF(T17:T19,TRUE)","v":0}]
[null,null,null,null,null,null,null,"Samstag",null,null,null,"Sonntag",null,null,null,false,false,false,false,false,false,{"$f":"COUNTIF(P17:P20,TRUE)","v":0},{"$f":"COUNTIF(Q17:Q20,TRUE)","v":0}]
[null,null,null,null,null,"Wil / SG (10/50m)",{"$f":"IF(P17=FALSE,\"\",\"So. 08:00 / 10:50\")","v":""},null,null,null,null,null,null,null,null,false,false,null,null,null,false]
[null,null,null,null,null,null,null,"Sonntag",null,null,null,{"$f":"IF(T18=FALSE,\"\",\"Sa. 10:30-11:45\")","v":""},null,null,null,false,false,null,null,null,false]
[null,null,null,null,null,null,{"$f":"IF(P18=FALSE,\"\",\"So. 09:20 / 11:40\")","v":""}]
[]
[null,null,null,"Shooting Masters",6,"29. / 30. April 2023","Samstag",null,"Sonntag",null,null,null,null,null,null,false,false,false,false,false,false,null,null,{"$f":"COUNTIF(R23:R25,TRUE)","v":0},{"$f":"COUNTIF(S23:S25,TRUE)","v":0},{"$f":"COUNTIF(T23:T25,TRUE)","v":0}]
[null,null,null,null,null,null,null,"10:45 Uhr",null,"10:45 Uhr","Samstag",{"$f":"IF(T23=FALSE,\"\",\"Sa.So. 08:30-09:45\")","v":""},null,null,null,false,false,false,false,false,false,{"$f":"COUNTIF(P23:P27,TRUE)","v":0},{"$f":"COUNTIF(Q23:Q27,TRUE)","v":0}]
[null,null,null,null,null,"Liestal (25m)","WK 1",null,"WK 2",null,null,null,null,null,null,false,null,null,null,null,false]
[null,null,null,null,null,null,null,null,null,null,"Sonntag",null,null,null,null,false,null,null,null,null,false]
[null,null,null,null,null,null,null,null,null,null,null,null,null,null,null,false]
[]
[null,null,null,"Shooting Masters",8,"10. / 11. August 2019",null,null,null,null,null,null,null,null,null,false,false,false,false,false,false,null,null,{"$f":"COUNTIF(R29:R31,TRUE)","v":0},{"$f":"COUNTIF(S29:S31,TRUE)","v":0},{"$f":"COUNTIF(T29:T31,TRUE)","v":0}]
[null,null,null,null,null,null,null,"Samstag",null,{"$f":"IF(R29=FALSE,\"\",\"Sa. 17:00-18:15\")","v":""},{"$f":"IF(S29=FALSE,\"\",\"Sa. 17:00-18:15\")","v":""},"Sonntag",null,null,null,false,false,false,false,false,false,{"$f":"COUNTIF(P29:P32,TRUE)","v":0},{"$f":"COUNTIF(Q29:Q32,TRUE)","v":0}]
[null,null,null,null,null,"Wil / SG (10/50m)",{"$f":"IF(P29=FALSE,\"\",\"So. 08:00 / 10:50\")","v":""},null,null,null,null,null,null,null,null,false,false,null,null,null,false]
[null,null,null,null,null,null,null,"Sonntag",null,null,null,{"$f":"IF(T30=FALSE,\"\",\"Sa. 10:30-11:45\")","v":""},null,null,null,false,false,null,null,null,false]
[null,null,null,null,null,null,{"$f":"IF(P31=FALSE,\"\",\"So. 09:20 / 11:40\")","v":""}]
[]
[null,null,null,"Shooting Masters",7,"20. / 21. Mai 2023","Samstag",null,"Sonntag",null,null,null,null,null,null,false,false,false,false,false,false,null,null,{"$f":"COUNTIF(R35:R37,TRUE)","v":0},{"$f":"COUNTIF(S35:S37,TRUE)","v":0},{"$f":"COUNTIF(T35:T37,TRUE)","v":0}]
[null,null,null,null,null,null,null,"11:40 Uhr",null,"10:45 Uhr","Samstag",{"$f":"IF(T35=FALSE,\"\",\"Sa. 08:30-09:45\")","v":""},null,null,null,true,false,false,false,false,false,{"$f":"COUNTIF(P36:P38,TRUE)","v":1},{"$f":"COUNTIF(Q35:Q38,TRUE)","v":0}]
[null,null,null,null,null,"Liestal (25m)","WK 1",null,"WK 2",null,null,null,null,null,null,false,false,null,false,false,false]
[null,null,{"$f":"IF(V36=2,\"10m Shooting Masters zählt der Sonntag\",IF(W36=2,\"10m Shooting Masters zählt der Sonntag\",\"\"))","v":""},null,null,null,null,null,null,null,"Sonntag",{"$f":"IF(T36=FALSE,\"\",\"Sa. 10:30-11:45\")","v":""},null,null,null,false,false,null,null,null,false]
[]
[]
[null,null,null,"Shooting Masters",6,"22. / 23. August 2009",null,null,null,null,null,null,null,null,null,false,false,false,false,false]
[null,null,null,null,null,{"$f":"IF(Q42=FALSE,\"\",\"Samstag   09:00 - 10:45\")","v":""},null,null,null,{"$f":"IF(R41=FALSE,\"\",\"Sa. 15:30-16:45\")","v":""},{"$f":"IF(S41=FALSE,\"\",\"So. 11:10-15:00\")","v":""},{"$f":"IF(T41=FALSE,\"\",\"So. 08:30-10:45\")","v":""},null,null,null,false,false,null,false]
[null,null,null,null,null,{"$f":"IF(P42=FALSE,\"\",\"Samstag   11:15 - 12:30\")","v":""},null,null,null,null,null,null,null,null,null,false,false]
[null,null,null,null,null,{"$f":"IF(AND(Q43=FALSE,P43=FALSE),\"\",\"Samstag   13:00 - 14:15/14:45\")","v":""},null,null,null,null,{"$f":"IF(S42=FALSE,\"\",\"Junioren\")","v":""},null,null,null,null,false,false]
[null,null,null,null,null,{"$f":"IF(AND(Q44=FALSE,P44=FALSE),\"\",\"Samstag   15:15 - 16:30/17:00\")","v":""},null,null,null,null,{"$f":"IF(S42=FALSE,\"\",\"Sa. 14:00-17:50\")","v":""}]
[]
[null,null,null,"Shooting Masters",8,"29. / 30. Juli 2023","Samstag",null,"Sonntag",null,null,null,null,null,null,false,false,false,false,false,false,null,null,{"$f":"COUNTIF(R47:R49,TRUE)","v":0},{"$f":"COUNTIF(S47:S49,TRUE)","v":0},{"$f":"COUNTIF(T47:T49,TRUE)","v":0}]
[null,null,null,null,null,null,null,"11:40 Uhr",null,"10:45 Uhr","Samstag",{"$f":"IF(T47=FALSE,\"\",\"Sa. 08:30-09:45\")","v":""},null,null,null,true,false,false,false,false,false,{"$f":"COUNTIF(P48:P50,TRUE)","v":1},{"$f":"COUNTIF(Q47:Q50,TRUE)","v":0}]
[null,null,null,null,null,"Liestal (25m)","WK 1",null,"WK 2",null,null,null,null,null,null,false,false,null,false,false,false]
[null,null,{"$f":"IF(V48=2,\"10m Shooting Masters zählt der Sonntag\",IF(W48=2,\"10m Shooting Masters zählt der Sonntag\",\"\"))","v":""},null,null,null,null,null,null,null,"Sonntag",{"$f":"IF(T48=FALSE,\"\",\"Sa. 10:30-11:45\")","v":""},null,null,null,false,false,null,null,null,false]
[]
[]
[]
[null,null,null,"Meldetermin","Montag 20:00 Uhr vor dem Shooting Masters"]
[]
[null,null,null,null,null,"Bemerkungen / Wünsche"]
[null,null,null,"ssv@armando-amrein.ch"]